[Event "Titled Tuesday Blitz June 13 Early 2023"]
[White "Arat, Ufuk Sezen"]
[Black "Djordjevic, Vuk"]
[WhiteFideId "6309089"]
[BlackFideId "902098"]
[WhiteElo "2289"]
[BlackElo "2463"]
[Result "0-1"]
[Round "6"]
[TimeControl "180+2"]
[Date "2023.06.13"]
[WhiteClock "0:00:04"]
[BlackClock "0:00:13"]
[Board "63"]

1. e4 {[%clk 0:03:00]}  e6 {[%clk 0:02:59]} 2. d4 {[%clk 0:03:00]}  d5 {[%clk 0:02:59]} 3. Nc3 {[%clk 0:03:01]}  Bb4 {[%clk 0:02:59]} 4. exd5 {[%clk 0:03:00]}  exd5 {[%clk 0:02:59]} 5. Bd3 {[%clk 0:03:01]}  Nf6 {[%clk 0:03:00]} 6. Ne2 {[%clk 0:03:01]}  O-O {[%clk 0:03:00]} 7. O-O {[%clk 0:02:59]}  Nc6 {[%clk 0:02:56]} 8. a3 {[%clk 0:02:58]}  Bxc3 {[%clk 0:02:52]} 9. bxc3 {[%clk 0:02:56]}  h6 {[%clk 0:02:48]} 10. Ng3 {[%clk 0:02:47]}  Qd6 {[%clk 0:02:42]} 11. a4 {[%clk 0:02:46]}  Re8 {[%clk 0:02:41]} 12. h3 {[%clk 0:02:33]}  Be6 {[%clk 0:02:30]} 13. Qf3 {[%clk 0:02:32]}  Ne7 {[%clk 0:02:20]} 14. a5 {[%clk 0:02:21]}  Ng6 {[%clk 0:02:15]} 15. Nf5 {[%clk 0:01:56]}  Bxf5 {[%clk 0:02:11]} 16. Qxf5 {[%clk 0:01:55]}  Ne4 {[%clk 0:01:13]} 17. c4 {[%clk 0:01:43]}  Nc3 {[%clk 0:00:49]} 18. Ba3 {[%clk 0:01:23]}  Qc6 {[%clk 0:00:43]} 19. cxd5 {[%clk 0:01:15]}  Qxd5 {[%clk 0:00:31]} 20. Qxd5 {[%clk 0:01:09]}  Nxd5 {[%clk 0:00:32]} 21. Rab1 {[%clk 0:01:09]}  b6 {[%clk 0:00:31]} 22. Bb5 {[%clk 0:01:08]}  Re6 {[%clk 0:00:28]} 23. Rbe1 {[%clk 0:00:50]}  Ngf4 {[%clk 0:00:14]} 24. Rxe6 {[%clk 0:00:48]}  Nxe6 {[%clk 0:00:14]} 25. c4 {[%clk 0:00:42]}  Nxd4 {[%clk 0:00:13]} 26. cxd5 {[%clk 0:00:10]}  Nxb5 {[%clk 0:00:13]} 27. Rb1 {[%clk 0:00:10]}  Nxa3 {[%clk 0:00:13]} 28. Rc1 {[%clk 0:00:09]}  Nb5 {[%clk 0:00:13]} 29. Rb1 {[%clk 0:00:04]}  Nc3 {[%clk 0:00:13]} 0-1


[Site "https://www.chess.com"]

[Event "Titled Tuesday Blitz June 13 Early 2023"]
[White "Postny, Evgeny"]
[Black "Vovk, Orest"]
[WhiteFideId "2804344"]
[BlackFideId "14113490"]
[WhiteElo "2504"]
[BlackElo "2215"]
[Result "1-0"]
[Round "6"]
[TimeControl "180+2"]
[Date "2023.06.13"]
[WhiteClock "0:00:39"]
[BlackClock "0:00:02"]
[Board "64"]

1. e4 {[%clk 0:03:00]}  g5 {[%clk 0:02:59]} 2. d4 {[%clk 0:03:01]}  g4 {[%clk 0:02:39]} 3. Qxg4 {[%clk 0:02:59]}  d5 {[%clk 0:02:39]} 4. Qe2 {[%clk 0:02:59]}  dxe4 {[%clk 0:02:38]} 5. Qxe4 {[%clk 0:02:56]}  Nf6 {[%clk 0:02:38]} 6. Qh4 {[%clk 0:02:55]}  Nc6 {[%clk 0:02:35]} 7. c3 {[%clk 0:02:45]}  Rg8 {[%clk 0:02:34]} 8. h3 {[%clk 0:02:41]}  Qd5 {[%clk 0:02:32]} 9. Nf3 {[%clk 0:02:38]}  Bf5 {[%clk 0:02:28]} 10. Na3 {[%clk 0:02:32]}  O-O-O {[%clk 0:02:21]} 11. Nc4 {[%clk 0:02:25]}  Qe4+ {[%clk 0:01:51]} 12. Qxe4 {[%clk 0:02:24]}  Bxe4 {[%clk 0:01:50]} 13. Be3 {[%clk 0:02:12]}  Bxf3 {[%clk 0:01:44]} 14. gxf3 {[%clk 0:02:13]}  Nd5 {[%clk 0:01:44]} 15. Bd3 {[%clk 0:02:09]}  Nxe3 {[%clk 0:01:40]} 16. fxe3 {[%clk 0:02:08]}  Rg2 {[%clk 0:01:35]} 17. O-O-O {[%clk 0:02:04]}  Bh6 {[%clk 0:01:29]} 18. f4 {[%clk 0:02:04]}  Rdg8 {[%clk 0:01:14]} 19. Bxh7 {[%clk 0:02:04]}  R8g3 {[%clk 0:01:13]} 20. Be4 {[%clk 0:02:04]}  Re2 {[%clk 0:01:05]} 21. Bxc6 {[%clk 0:01:50]}  bxc6 {[%clk 0:01:03]} 22. Rdg1 {[%clk 0:01:50]}  Rf3 {[%clk 0:00:57]} 23. Rf1 {[%clk 0:01:44]}  Rg3 {[%clk 0:00:52]} 24. Rhg1 {[%clk 0:01:40]}  Rxh3 {[%clk 0:00:48]} 25. Rh1 {[%clk 0:01:40]}  Reh2 {[%clk 0:00:48]} 26. Rxh2 {[%clk 0:01:40]}  Rxh2 {[%clk 0:00:49]} 27. Ne5 {[%clk 0:01:18]}  f6 {[%clk 0:00:48]} 28. Nxc6 {[%clk 0:01:05]}  Kd7 {[%clk 0:00:47]} 29. Nb4 {[%clk 0:01:04]}  Kd6 {[%clk 0:00:43]} 30. Nd3 {[%clk 0:00:58]}  Kd5 {[%clk 0:00:38]} 31. Rf2 {[%clk 0:00:58]}  Rh3 {[%clk 0:00:32]} 32. Kd2 {[%clk 0:00:56]}  c5 {[%clk 0:00:21]} 33. Nxc5 {[%clk 0:00:54]}  e5 {[%clk 0:00:20]} 34. Nd3 {[%clk 0:00:51]}  Ke4 {[%clk 0:00:12]} 35. Re2 {[%clk 0:00:40]}  exf4 {[%clk 0:00:02]} 36. Nf2+ {[%clk 0:00:39]} 1-0


[Site "https://www.chess.com"]

[Event "Titled Tuesday Blitz June 13 Early 2023"]
[White "Wagner, Dennis"]
[Black "Pinheiro, Iung Alicio de O."]
[WhiteFideId "24650684"]
[BlackFideId "2104350"]
[WhiteElo "2478"]
[BlackElo "2283"]
[Result "1-0"]
[Round "6"]
[TimeControl "180+2"]
[Date "2023.06.13"]
[WhiteClock "0:00:39"]
[BlackClock "0:00:00"]
[Board "65"]

1. e4 {[%clk 0:03:00]}  e5 {[%clk 0:02:55]} 2. Nf3 {[%clk 0:03:01]}  Nc6 {[%clk 0:02:55]} 3. Bb5 {[%clk 0:03:01]}  a6 {[%clk 0:02:54]} 4. Ba4 {[%clk 0:03:02]}  d6 {[%clk 0:02:55]} 5. O-O {[%clk 0:02:50]}  Bd7 {[%clk 0:02:55]} 6. c3 {[%clk 0:02:49]}  Nge7 {[%clk 0:02:54]} 7. d4 {[%clk 0:02:49]}  Ng6 {[%clk 0:02:53]} 8. Be3 {[%clk 0:02:43]}  Be7 {[%clk 0:02:52]} 9. Nbd2 {[%clk 0:02:43]}  O-O {[%clk 0:02:52]} 10. Re1 {[%clk 0:02:43]}  b5 {[%clk 0:02:51]} 11. Bc2 {[%clk 0:02:37]}  exd4 {[%clk 0:02:35]} 12. cxd4 {[%clk 0:02:36]}  Nb4 {[%clk 0:02:31]} 13. Bb1 {[%clk 0:02:36]}  c5 {[%clk 0:02:31]} 14. d5 {[%clk 0:02:28]}  Bf6 {[%clk 0:02:26]} 15. Qc1 {[%clk 0:01:52]}  c4 {[%clk 0:01:44]} 16. a3 {[%clk 0:01:51]}  Nd3 {[%clk 0:01:44]} 17. Bxd3 {[%clk 0:01:51]}  cxd3 {[%clk 0:01:45]} 18. Qb1 {[%clk 0:01:51]}  Ne5 {[%clk 0:01:39]} 19. Nxe5 {[%clk 0:01:50]}  Bxe5 {[%clk 0:01:40]} 20. f4 {[%clk 0:01:41]}  Bf6 {[%clk 0:01:40]} 21. Ra2 {[%clk 0:01:39]}  b4 {[%clk 0:01:19]} 22. Qxd3 {[%clk 0:01:30]}  Bb5 {[%clk 0:01:18]} 23. Qb3 {[%clk 0:01:30]}  bxa3 {[%clk 0:01:12]} 24. bxa3 {[%clk 0:01:31]}  Rc8 {[%clk 0:01:10]} 25. a4 {[%clk 0:01:11]}  Rc3 {[%clk 0:01:04]} 26. Qb4 {[%clk 0:01:12]}  Bd3 {[%clk 0:00:50]} 27. e5 {[%clk 0:01:07]}  Qc7 {[%clk 0:00:10]} 28. exf6 {[%clk 0:01:03]}  Re8 {[%clk 0:00:10]} 29. Kf2 {[%clk 0:00:55]}  Rc1 {[%clk 0:00:08]} 30. Rxc1 {[%clk 0:00:45]}  Qxc1 {[%clk 0:00:09]} 31. Qa3 {[%clk 0:00:42]}  Qd1 {[%clk 0:00:08]} 32. Qxd3 {[%clk 0:00:41]}  g5 {[%clk 0:00:00]} 33. Qf5 {[%clk 0:00:39]} 1-0


[Site "https://www.chess.com"]

[Event "Titled Tuesday Blitz June 13 Early 2023"]
[White "Maatman, Nick"]
[Black "Parondo, Rolly"]
[WhiteFideId "1040391"]
[BlackFideId "5217407"]
[WhiteElo "2711"]
[BlackElo "2141"]
[Result "1-0"]
[Round "6"]
[TimeControl "180+2"]
[Date "2023.06.13"]
[WhiteClock "0:00:27"]
[BlackClock "0:00:18"]
[Board "66"]

1. d4 {[%clk 0:02:17]}  Nf6 {[%clk 0:02:58]} 2. c4 {[%clk 0:02:13]}  g6 {[%clk 0:02:58]} 3. Nf3 {[%clk 0:02:14]}  Bg7 {[%clk 0:02:58]} 4. Nc3 {[%clk 0:02:15]}  d6 {[%clk 0:02:59]} 5. e4 {[%clk 0:02:15]}  O-O {[%clk 0:02:59]} 6. Be2 {[%clk 0:02:15]}  e5 {[%clk 0:02:58]} 7. O-O {[%clk 0:02:16]}  exd4 {[%clk 0:02:58]} 8. Nxd4 {[%clk 0:02:16]}  Re8 {[%clk 0:02:58]} 9. f3 {[%clk 0:02:16]}  c6 {[%clk 0:02:56]} 10. Kh1 {[%clk 0:02:15]}  Nbd7 {[%clk 0:02:55]} 11. Bf4 {[%clk 0:02:13]}  Nh5 {[%clk 0:02:53]} 12. Bxd6 {[%clk 0:01:58]}  Qf6 {[%clk 0:02:53]} 13. e5 {[%clk 0:01:46]}  Nxe5 {[%clk 0:02:52]} 14. Ne4 {[%clk 0:01:45]}  Qh4 {[%clk 0:02:44]} 15. g3 {[%clk 0:01:21]}  Qd8 {[%clk 0:02:38]} 16. c5 {[%clk 0:01:15]}  Bh3 {[%clk 0:02:38]} 17. Re1 {[%clk 0:01:10]}  h6 {[%clk 0:02:21]} 18. Qc2 {[%clk 0:01:03]}  Qc8 {[%clk 0:01:56]} 19. Rad1 {[%clk 0:00:58]}  Kh7 {[%clk 0:01:53]} 20. Nf2 {[%clk 0:00:56]}  Bd7 {[%clk 0:01:37]} 21. f4 {[%clk 0:00:56]}  Ng4 {[%clk 0:01:37]} 22. Bxg4 {[%clk 0:00:55]}  Bxg4 {[%clk 0:01:38]} 23. Rxe8 {[%clk 0:00:54]}  Qxe8 {[%clk 0:01:16]} 24. Nxg4 {[%clk 0:00:52]}  Bxd4 {[%clk 0:00:54]} 25. Rxd4 {[%clk 0:00:51]}  Qe1+ {[%clk 0:00:54]} 26. Kg2 {[%clk 0:00:51]}  Re8 {[%clk 0:00:55]} 27. Be5 {[%clk 0:00:36]}  Re7 {[%clk 0:00:47]} 28. Qd2 {[%clk 0:00:31]}  Qb1 {[%clk 0:00:44]} 29. Nf6+ {[%clk 0:00:26]}  Nxf6 {[%clk 0:00:42]} 30. Bxf6 {[%clk 0:00:27]}  Re6 {[%clk 0:00:33]} 31. Be5 {[%clk 0:00:27]}  Qxa2 {[%clk 0:00:31]} 32. Rd8 {[%clk 0:00:26]}  Rxe5 {[%clk 0:00:18]} 33. fxe5 {[%clk 0:00:27]} 1-0


[Site "https://www.chess.com"]

[Event "Titled Tuesday Blitz June 13 Early 2023"]
[White "Makhnev, Denis"]
[Black "Garakov, Mikhael"]
[WhiteFideId "13707647"]
[BlackFideId "4169034"]
[WhiteElo "2515"]
[BlackElo "2347"]
[Result "1/2-1/2"]
[Round "6"]
[TimeControl "180+2"]
[Date "2023.06.13"]
[WhiteClock "0:00:08"]
[BlackClock "0:00:11"]
[Board "68"]

1. Nf3 {[%clk 0:03:00]}  c5 {[%clk 0:02:59]} 2. c4 {[%clk 0:03:00]}  b6 {[%clk 0:02:58]} 3. d4 {[%clk 0:03:00]}  cxd4 {[%clk 0:02:58]} 4. Nxd4 {[%clk 0:03:00]}  Bb7 {[%clk 0:02:58]} 5. Nc3 {[%clk 0:03:01]}  Nf6 {[%clk 0:02:59]} 6. f3 {[%clk 0:03:00]}  e6 {[%clk 0:02:59]} 7. e4 {[%clk 0:02:59]}  d6 {[%clk 0:03:00]} 8. Be3 {[%clk 0:02:57]}  Be7 {[%clk 0:03:00]} 9. Be2 {[%clk 0:02:57]}  O-O {[%clk 0:03:01]} 10. O-O {[%clk 0:02:57]}  a6 {[%clk 0:03:01]} 11. Qd2 {[%clk 0:02:56]}  Nc6 {[%clk 0:02:59]} 12. Rfd1 {[%clk 0:02:51]}  Rc8 {[%clk 0:02:59]} 13. Rac1 {[%clk 0:02:46]}  Ne5 {[%clk 0:02:52]} 14. b3 {[%clk 0:02:42]}  Qc7 {[%clk 0:02:50]} 15. Bf1 {[%clk 0:02:36]}  Kh8 {[%clk 0:02:42]} 16. Na4 {[%clk 0:02:28]}  Rg8 {[%clk 0:02:30]} 17. Qf2 {[%clk 0:02:06]}  Nfd7 {[%clk 0:02:12]} 18. Ne2 {[%clk 0:02:00]}  Bd8 {[%clk 0:02:10]} 19. Nf4 {[%clk 0:01:50]}  Bc6 {[%clk 0:01:59]} 20. Nd5 {[%clk 0:01:44]}  exd5 {[%clk 0:00:49]} 21. cxd5 {[%clk 0:01:45]}  Nc5 {[%clk 0:00:49]} 22. dxc6 {[%clk 0:01:41]}  Qxc6 {[%clk 0:00:18]} 23. Bxa6 {[%clk 0:01:30]}  Ra8 {[%clk 0:00:18]} 24. Nxc5 {[%clk 0:01:29]}  bxc5 {[%clk 0:00:17]} 25. Bf1 {[%clk 0:01:29]}  Be7 {[%clk 0:00:15]} 26. h3 {[%clk 0:01:15]}  Qb7 {[%clk 0:00:14]} 27. f4 {[%clk 0:01:06]}  Nd7 {[%clk 0:00:11]} 28. Qf3 {[%clk 0:00:47]}  Nb6 {[%clk 0:00:06]} 29. a4 {[%clk 0:00:43]}  Rge8 {[%clk 0:00:04]} 30. Bb5 {[%clk 0:00:41]}  Red8 {[%clk 0:00:04]} 31. Rc2 {[%clk 0:00:36]}  Bf6 {[%clk 0:00:04]} 32. Rcd2 {[%clk 0:00:35]}  Be7 {[%clk 0:00:05]} 33. e5 {[%clk 0:00:30]}  d5 {[%clk 0:00:05]} 34. Bc4 {[%clk 0:00:26]}  Rab8 {[%clk 0:00:05]} 35. Bxd5 {[%clk 0:00:25]}  Nxd5 {[%clk 0:00:05]} 36. Rxd5 {[%clk 0:00:24]}  Qxb3 {[%clk 0:00:05]} 37. Rxd8+ {[%clk 0:00:19]}  Rxd8 {[%clk 0:00:06]} 38. Rxd8+ {[%clk 0:00:18]}  Bxd8 {[%clk 0:00:07]} 39. Bxc5 {[%clk 0:00:18]}  Qxa4 {[%clk 0:00:07]} 40. Qd5 {[%clk 0:00:16]}  Qe8 {[%clk 0:00:06]} 41. f5 {[%clk 0:00:14]}  h5 {[%clk 0:00:07]} 42. e6 {[%clk 0:00:14]}  fxe6 {[%clk 0:00:07]} 43. fxe6 {[%clk 0:00:15]}  Bf6 {[%clk 0:00:07]} 44. e7 {[%clk 0:00:12]}  Bxe7 {[%clk 0:00:04]} 45. Bxe7 {[%clk 0:00:08]}  Qxe7 {[%clk 0:00:05]} 46. Qxh5+ {[%clk 0:00:09]}  Kg8 {[%clk 0:00:06]} 47. Qd5+ {[%clk 0:00:09]}  Kh7 {[%clk 0:00:06]} 48. Kh2 {[%clk 0:00:10]}  Qc7+ {[%clk 0:00:06]} 49. Kg1 {[%clk 0:00:09]}  Qc1+ {[%clk 0:00:06]} 50. Kf2 {[%clk 0:00:09]}  Qf4+ {[%clk 0:00:07]} 51. Qf3 {[%clk 0:00:08]}  Qd2+ {[%clk 0:00:06]} 52. Qe2 {[%clk 0:00:09]}  Qd4+ {[%clk 0:00:07]} 53. Qe3 {[%clk 0:00:09]}  Qb2+ {[%clk 0:00:08]} 54. Kg3 {[%clk 0:00:09]}  Qf6 {[%clk 0:00:08]} 55. Qf4 {[%clk 0:00:09]}  Qc3+ {[%clk 0:00:08]} 56. Kg4 {[%clk 0:00:07]}  Qe1 {[%clk 0:00:06]} 57. Qf5+ {[%clk 0:00:07]}  Kg8 {[%clk 0:00:06]} 58. Qd5+ {[%clk 0:00:07]}  Kh7 {[%clk 0:00:06]} 59. h4 {[%clk 0:00:07]}  Qe2+ {[%clk 0:00:05]} 60. Kg3 {[%clk 0:00:06]}  Qe1+ {[%clk 0:00:05]} 61. Kg4 {[%clk 0:00:06]}  Qe2+ {[%clk 0:00:06]} 62. Qf3 {[%clk 0:00:07]}  Qe1 {[%clk 0:00:06]} 63. Qf5+ {[%clk 0:00:06]}  Kh8 {[%clk 0:00:07]} 64. h5 {[%clk 0:00:05]}  Qe2+ {[%clk 0:00:07]} 65. Qf3 {[%clk 0:00:05]}  Qe6+ {[%clk 0:00:08]} 66. Kg5 {[%clk 0:00:04]}  Qe5+ {[%clk 0:00:08]} 67. Kh4 {[%clk 0:00:03]}  Qe7+ {[%clk 0:00:08]} 68. Kh3 {[%clk 0:00:04]}  Qe6+ {[%clk 0:00:08]} 69. g4 {[%clk 0:00:04]}  Qe1 {[%clk 0:00:09]} 70. Qf8+ {[%clk 0:00:03]}  Kh7 {[%clk 0:00:09]} 71. Qf5+ {[%clk 0:00:04]}  Kh8 {[%clk 0:00:09]} 72. Qf3 {[%clk 0:00:05]}  Qe6 {[%clk 0:00:09]} 73. Kh4 {[%clk 0:00:04]}  Qe7+ {[%clk 0:00:10]} 74. g5 {[%clk 0:00:05]}  Qb4+ {[%clk 0:00:10]} 75. Kh3 {[%clk 0:00:04]}  Qe7 {[%clk 0:00:08]} 76. Qa8+ {[%clk 0:00:03]}  Kh7 {[%clk 0:00:07]} 77. Qd5 {[%clk 0:00:02]}  Qe3+ {[%clk 0:00:07]} 78. Kg4 {[%clk 0:00:03]}  Qe2+ {[%clk 0:00:07]} 79. Qf3 {[%clk 0:00:02]}  Qe6+ {[%clk 0:00:07]} 80. Qf5+ {[%clk 0:00:02]}  Qxf5+ {[%clk 0:00:07]} 81. Kxf5 {[%clk 0:00:03]}  Kh8 {[%clk 0:00:07]} 82. g6 {[%clk 0:00:03]}  Kg8 {[%clk 0:00:08]} 83. Ke6 {[%clk 0:00:04]}  Kf8 {[%clk 0:00:08]} 84. Kd7 {[%clk 0:00:04]}  Kg8 {[%clk 0:00:08]} 85. Ke7 {[%clk 0:00:05]}  Kh8 {[%clk 0:00:08]} 86. Ke8 {[%clk 0:00:06]}  Kg8 {[%clk 0:00:09]} 87. Ke7 {[%clk 0:00:07]}  Kh8 {[%clk 0:00:09]} 88. h6 {[%clk 0:00:07]}  Kg8 {[%clk 0:00:10]} 89. h7+ {[%clk 0:00:08]}  Kh8 {[%clk 0:00:11]} 90. Kf7 {[%clk 0:00:08]} 1/2-1/2


[Site "https://www.chess.com"]

[Event "Titled Tuesday Blitz June 13 Early 2023"]
[White "MKlose11"]
[Black "Maevsky, Nikolay"]
[BlackFideId "4198220"]
[WhiteElo "2541"]
[BlackElo "2021"]
[Result "0-1"]
[Round "6"]
[TimeControl "180+2"]
[Date "2023.06.13"]
[WhiteClock "0:00:06"]
[BlackClock "0:00:27"]
[Board "69"]

1. e4 {[%clk 0:03:00]}  c6 {[%clk 0:02:59]} 2. Nc3 {[%clk 0:03:00]}  d5 {[%clk 0:03:00]} 3. g3 {[%clk 0:03:00]}  dxe4 {[%clk 0:02:55]} 4. Nxe4 {[%clk 0:03:01]}  Bf5 {[%clk 0:02:55]} 5. Bg2 {[%clk 0:03:01]}  e6 {[%clk 0:02:55]} 6. Ne2 {[%clk 0:03:00]}  Nd7 {[%clk 0:02:55]} 7. d4 {[%clk 0:02:59]}  Ngf6 {[%clk 0:02:55]} 8. N2c3 {[%clk 0:02:59]}  Nxe4 {[%clk 0:02:53]} 9. Nxe4 {[%clk 0:03:00]}  Be7 {[%clk 0:02:53]} 10. O-O {[%clk 0:02:59]}  O-O {[%clk 0:02:53]} 11. c3 {[%clk 0:02:59]}  Nf6 {[%clk 0:02:50]} 12. Nxf6+ {[%clk 0:02:51]}  Bxf6 {[%clk 0:02:51]} 13. Bf4 {[%clk 0:02:48]}  Re8 {[%clk 0:02:45]} 14. Re1 {[%clk 0:02:48]}  Qb6 {[%clk 0:02:41]} 15. Qb3 {[%clk 0:02:47]}  Qxb3 {[%clk 0:02:39]} 16. axb3 {[%clk 0:02:48]}  Bc2 {[%clk 0:02:39]} 17. b4 {[%clk 0:02:48]}  a6 {[%clk 0:02:40]} 18. Be5 {[%clk 0:02:48]}  Be7 {[%clk 0:02:29]} 19. h4 {[%clk 0:02:38]}  Red8 {[%clk 0:02:26]} 20. Bc7 {[%clk 0:02:36]}  Rd7 {[%clk 0:02:26]} 21. Bb6 {[%clk 0:02:36]}  Rc8 {[%clk 0:02:24]} 22. Bf3 {[%clk 0:02:26]}  Kf8 {[%clk 0:02:23]} 23. Re2 {[%clk 0:02:25]}  Bd3 {[%clk 0:02:17]} 24. Re3 {[%clk 0:02:23]}  Bc2 {[%clk 0:02:11]} 25. Bc5 {[%clk 0:02:16]}  h6 {[%clk 0:02:07]} 26. Bh5 {[%clk 0:02:00]}  Kg8 {[%clk 0:02:01]} 27. Bxe7 {[%clk 0:01:58]}  Rxe7 {[%clk 0:02:00]} 28. f4 {[%clk 0:01:58]}  Rd7 {[%clk 0:01:56]} 29. Bg4 {[%clk 0:01:55]}  Rcd8 {[%clk 0:01:53]} 30. Rae1 {[%clk 0:01:54]}  Rd6 {[%clk 0:01:51]} 31. Kf2 {[%clk 0:01:53]}  Kf8 {[%clk 0:01:49]} 32. Re5 {[%clk 0:01:53]}  Rd5 {[%clk 0:01:32]} 33. R5e3 {[%clk 0:01:51]}  a5 {[%clk 0:01:29]} 34. Bf3 {[%clk 0:01:51]}  Rb5 {[%clk 0:01:27]} 35. Be2 {[%clk 0:01:43]}  Rb6 {[%clk 0:01:27]} 36. Rc1 {[%clk 0:01:35]}  Bh7 {[%clk 0:01:26]} 37. b5 {[%clk 0:01:12]}  cxb5 {[%clk 0:01:23]} 38. Re5 {[%clk 0:01:12]}  Rd5 {[%clk 0:01:09]} 39. Ke3 {[%clk 0:01:09]}  Ke7 {[%clk 0:01:06]} 40. Ra1 {[%clk 0:01:06]}  a4 {[%clk 0:01:06]} 41. Kd2 {[%clk 0:00:55]}  f6 {[%clk 0:01:05]} 42. Rxd5 {[%clk 0:00:48]}  exd5 {[%clk 0:01:05]} 43. Bd1 {[%clk 0:00:41]}  Be4 {[%clk 0:01:04]} 44. b3 {[%clk 0:00:39]}  axb3 {[%clk 0:01:01]} 45. Bxb3 {[%clk 0:00:40]}  Ra6 {[%clk 0:00:59]} 46. Ra2 {[%clk 0:00:34]}  Kd6 {[%clk 0:00:55]} 47. Kc1 {[%clk 0:00:28]}  g5 {[%clk 0:00:55]} 48. hxg5 {[%clk 0:00:26]}  fxg5 {[%clk 0:00:54]} 49. fxg5 {[%clk 0:00:25]}  hxg5 {[%clk 0:00:54]} 50. Rh2 {[%clk 0:00:18]}  Ra1+ {[%clk 0:00:51]} 51. Kb2 {[%clk 0:00:18]}  Rg1 {[%clk 0:00:50]} 52. Rh6+ {[%clk 0:00:17]}  Kc7 {[%clk 0:00:50]} 53. Rh3 {[%clk 0:00:16]}  Kb6 {[%clk 0:00:46]} 54. Ka3 {[%clk 0:00:16]}  Ka5 {[%clk 0:00:46]} 55. Rh8 {[%clk 0:00:15]}  Rxg3 {[%clk 0:00:44]} 56. Ra8+ {[%clk 0:00:15]}  Kb6 {[%clk 0:00:44]} 57. Kb4 {[%clk 0:00:16]}  g4 {[%clk 0:00:32]} 58. Rg8 {[%clk 0:00:16]}  Rg1 {[%clk 0:00:31]} 59. Rg5 {[%clk 0:00:13]}  g3 {[%clk 0:00:29]} 60. Bxd5 {[%clk 0:00:10]}  Bxd5 {[%clk 0:00:27]} 61. Rxd5 {[%clk 0:00:11]}  Rb1+ {[%clk 0:00:27]} 62. Ka3 {[%clk 0:00:11]}  g2 {[%clk 0:00:28]} 63. Rd6+ {[%clk 0:00:06]}  Kc7 {[%clk 0:00:27]} 0-1


[Site "https://www.chess.com"]

[Event "Titled Tuesday Blitz June 13 Early 2023"]
[White "Sowul, Bartosz"]
[Black "Jaracz, Pawel"]
[WhiteFideId "1137590"]
[BlackFideId "1102222"]
[WhiteElo "2188"]
[BlackElo "2454"]
[Result "0-1"]
[Round "6"]
[TimeControl "180+2"]
[Date "2023.06.13"]
[WhiteClock "0:00:00"]
[BlackClock "0:00:08"]
[Board "70"]

1. e4 {[%clk 0:03:00]}  d6 {[%clk 0:02:55]} 2. d4 {[%clk 0:03:00]}  Nf6 {[%clk 0:02:54]} 3. Nc3 {[%clk 0:03:01]}  e5 {[%clk 0:02:54]} 4. Nf3 {[%clk 0:03:00]}  Nbd7 {[%clk 0:02:54]} 5. Bc4 {[%clk 0:03:00]}  Be7 {[%clk 0:02:54]} 6. a4 {[%clk 0:02:58]}  O-O {[%clk 0:02:53]} 7. O-O {[%clk 0:02:58]}  c5 {[%clk 0:02:52]} 8. dxe5 {[%clk 0:02:22]}  dxe5 {[%clk 0:02:51]} 9. h3 {[%clk 0:02:20]}  Qc7 {[%clk 0:02:46]} 10. a5 {[%clk 0:02:11]}  h6 {[%clk 0:02:35]} 11. Qe2 {[%clk 0:02:10]}  Rd8 {[%clk 0:02:31]} 12. Nh4 {[%clk 0:01:56]}  Nf8 {[%clk 0:02:30]} 13. Nf5 {[%clk 0:01:47]}  Ne6 {[%clk 0:02:25]} 14. Nb5 {[%clk 0:01:19]}  Qd7 {[%clk 0:02:24]} 15. c3 {[%clk 0:01:20]}  Bf8 {[%clk 0:01:59]} 16. Na3 {[%clk 0:01:15]}  Qc6 {[%clk 0:01:56]} 17. Re1 {[%clk 0:01:07]}  Kh7 {[%clk 0:01:47]} 18. Bb5 {[%clk 0:01:07]}  Qc7 {[%clk 0:01:47]} 19. Nc4 {[%clk 0:01:07]}  g6 {[%clk 0:01:45]} 20. Ng3 {[%clk 0:00:56]}  Bg7 {[%clk 0:01:42]} 21. Ba4 {[%clk 0:00:50]}  Nf4 {[%clk 0:01:39]} 22. Bxf4 {[%clk 0:00:43]}  exf4 {[%clk 0:01:39]} 23. Nf1 {[%clk 0:00:43]}  Be6 {[%clk 0:01:35]} 24. Nfd2 {[%clk 0:00:39]}  Rab8 {[%clk 0:01:20]} 25. Bc2 {[%clk 0:00:39]}  b5 {[%clk 0:01:19]} 26. axb6 {[%clk 0:00:39]}  axb6 {[%clk 0:01:19]} 27. Nf3 {[%clk 0:00:37]}  b5 {[%clk 0:01:18]} 28. Nce5 {[%clk 0:00:33]}  b4 {[%clk 0:01:16]} 29. Ra6 {[%clk 0:00:31]}  bxc3 {[%clk 0:01:14]} 30. bxc3 {[%clk 0:00:31]}  Rb2 {[%clk 0:01:01]} 31. Rxe6 {[%clk 0:00:15]}  fxe6 {[%clk 0:00:59]} 32. Nc4 {[%clk 0:00:16]}  Rxc2 {[%clk 0:00:46]} 33. Qxc2 {[%clk 0:00:16]}  Qc6 {[%clk 0:00:41]} 34. Nfe5 {[%clk 0:00:15]}  Qa6 {[%clk 0:00:39]} 35. Nd2 {[%clk 0:00:10]}  Nd7 {[%clk 0:00:32]} 36. Nxd7 {[%clk 0:00:08]}  Rxd7 {[%clk 0:00:33]} 37. Nf3 {[%clk 0:00:08]}  Qd3 {[%clk 0:00:32]} 38. Qc1 {[%clk 0:00:08]}  Bxc3 {[%clk 0:00:25]} 39. Rf1 {[%clk 0:00:06]}  e5 {[%clk 0:00:25]} 40. Qa3 {[%clk 0:00:06]}  c4 {[%clk 0:00:14]} 41. Qa6 {[%clk 0:00:06]}  Qxe4 {[%clk 0:00:14]} 42. Rc1 {[%clk 0:00:04]}  Bd4 {[%clk 0:00:12]} 43. Qxc4 {[%clk 0:00:04]}  Qd5 {[%clk 0:00:11]} 44. Qe2 {[%clk 0:00:03]}  e4 {[%clk 0:00:10]} 45. Nh4 {[%clk 0:00:04]}  f3 {[%clk 0:00:09]} 46. gxf3 {[%clk 0:00:04]}  Qg5+ {[%clk 0:00:08]} 47. Kh2 {[%clk 0:00:02]}  Qf4+ {[%clk 0:00:08]} 48. Kg2 {[%clk 0:00:02]}  Qxc1 {[%clk 0:00:08]} 49. Qxe4 {[%clk 0:00:01]}  Qg5+ {[%clk 0:00:08]} 50. Kh2 {[%clk 0:00:02]}  Be5+ {[%clk 0:00:08]} 51. Kh1 {[%clk 0:00:00]}  Rd1+ {[%clk 0:00:08]} 0-1


[Site "https://www.chess.com"]